fUST/lending_fUST_20241106
["ID","MTS","AMOUNT","RATE_DAILY","PERIOD"]
[341363763,1730837443032,-500.0,0.00041095,14]
[341363765,1730837443041,-500.0,0.00041095,14]
[341363766,1730837443051,-500.0,0.00041095,14]
[341363767,1730837443060,-500.0,0.00041095,14]
[341363768,1730837443069,-500.0,0.00041095,14]
[341363769,1730837443078,-500.0,0.00041095,14]
[341363770,1730837443087,-500.0,0.00041095,14]
[341363771,1730837443097,-799.66,0.00041095,14]
[341363772,1730837443106,-799.66,0.00041095,14]
[341363773,1730837443115,-500.0,0.00041095,14]
[341363774,1730837443124,-799.66,0.00041095,14]
[341363775,1730837443135,-799.66,0.00041095,14]
[341363776,1730837443144,-500.0,0.00041095,14]
[341363778,1730837443153,-500.0,0.00041095,14]
[341363781,1730837443162,-799.66,0.00041095,14]
[341363783,1730837443174,-449.09697156,0.00041095,14]
[341363786,1730837443229,-50.90302844,0.00041095,14]
[341363788,1730837443239,-799.66,0.00041095,14]
[341363789,1730837443248,-500.0,0.00041095,14]
[341363790,1730837443257,-799.66,0.00041095,14]
[341363791,1730837443266,-313.88747482,0.00041095,14]
[341363821,1730837443715,-186.11252518,0.00041095,14]
[341363824,1730837443725,-308.80827482,0.00041095,14]
[341363829,1730837443769,-490.85172518,0.00041095,14]
[341363831,1730837443779,-500.0,0.00041095,14]
[341363833,1730837443789,-799.66,0.00041095,14]
[341363835,1730837443799,-500.0,0.00041095,14]
[341363837,1730837443809,-127.28827482,0.00041095,14]
[341363839,1730837443821,-372.71172518,0.00041095,14]
[341363841,1730837443831,-42.91327482,0.00041095,14]
[341363843,1730837443843,-756.74672518,0.00041095,14]
[341363845,1730837443853,-26.83485754,0.00041095,14]
[341363848,1730837443866,-473.16514246,0.00041095,14]
[341363850,1730837443876,-799.66,0.00041095,14]
[341363852,1730837443886,-799.66,0.00041095,14]
[341363854,1730837443896,-799.66,0.00041095,14]
[341363855,1730837443905,-500.0,0.00041095,14]
[341363857,1730837443914,-799.66,0.00041095,14]
[341363859,1730837443924,-799.66,0.00041095,14]
[341363861,1730837443934,-500.0,0.00041095,14]
[341363863,1730837443944,-500.0,0.00041095,14]
[341363866,1730837443957,-502.54294992,0.00041095,14]
[341363867,1730837443967,-135.64068158,0.00041095,14]
[341363881,1730837446729,-500.0,0.00038199,15]
[341363882,1730837446739,-500.0,0.00038199,15]
[341363883,1730837446748,-367.28474825,0.00041095,14]
[341363884,1730837446762,-500.0,0.00041095,14]
[341363885,1730837446772,-500.0,0.00041095,14]
[341363886,1730837446782,-500.0,0.00041095,14]
[341363887,1730837446790,-500.0,0.00041095,14]
[341363888,1730837446802,-77.44525175,0.00041095,14]
[341363889,1730837446851,-99.81767706,0.00041095,14]
[341363890,1730837446867,-322.73707119,0.00041095,14]
[341363891,1730837446877,-500.0,0.00041095,14]
[341363892,1730837446887,-500.0,0.00041095,14]
[341363893,1730837446896,-500.0,0.00041095,14]
[341363894,1730837446904,-500.0,0.00041095,14]
[341363895,1730837446915,-500.0,0.00041095,14]
[341363896,1730837446926,-563.5418196,0.00041095,14]
[341363897,1730837446936,-500.0,0.00041095,14]
[341363898,1730837446947,-500.0,0.00041095,14]
[341363899,1730837447023,-500.0,0.00041095,14]
[341363900,1730837447032,-500.0,0.00041095,14]
[341363901,1730837447042,-500.0,0.00041095,14]
[341363902,1730837447051,-500.0,0.00041095,14]
[341363903,1730837447060,-500.0,0.00041095,14]
[341363904,1730837447069,-500.0,0.00041095,14]
[341363905,1730837447079,-500.0,0.00041095,14]
[341363906,1730837447088,-500.0,0.00041095,14]
[341363907,1730837447097,-500.0,0.00041095,14]
[341363908,1730837447106,-500.0,0.00041095,14]
[341363909,1730837447115,-500.0,0.00041095,14]
[341363910,1730837447125,-500.0,0.00041095,14]
[341363911,1730837447134,-500.0,0.00041095,14]
[341363912,1730837447142,-500.0,0.00041095,14]
[341363913,1730837447151,-500.0,0.00041095,14]
[341363914,1730837447160,-500.0,0.00041095,14]
[341363915,1730837447169,-292.76771497,0.00041095,14]
[341363916,1730837447179,-500.0,0.00041095,14]
[341363917,1730837447188,-500.0,0.00041095,14]
[341363918,1730837447197,-500.0,0.00041095,14]
[341363919,1730837447206,-501.79378426,0.00041095,14]
[341363920,1730837447215,-500.0,0.00041095,14]
[341363921,1730837447224,-500.0,0.00041095,14]
[341363922,1730837447235,-500.0,0.00041095,14]
[341363923,1730837447244,-500.0,0.00041095,14]
[341363924,1730837447254,-500.0,0.00041095,14]
[341363925,1730837447263,-500.0,0.00041095,14]
[341363926,1730837447272,-500.0,0.00041095,14]
[341363927,1730837447281,-500.0,0.00041095,14]
[341363928,1730837447290,-500.0,0.00041095,14]
[341363929,1730837447299,-500.0,0.00041095,14]
[341363930,1730837447307,-500.0,0.00041095,14]
[341363931,1730837447317,-500.0,0.00041095,14]
[341363932,1730837447326,-500.0,0.00041095,14]
[341363933,1730837447335,-430.28,0.00041095,14]
[341363934,1730837447344,-500.0,0.00041095,14]
[341363935,1730837447354,-500.0,0.00041095,14]
[341363936,1730837447363,-502.24805344,0.00041095,14]
[341363937,1730837447372,-500.0,0.00041095,14]
[341363938,1730837447381,-500.0,0.00041095,14]
[341363939,1730837447390,-500.0,0.00041095,14]
[341363940,1730837447399,-500.0,0.00041095,14]
[341363941,1730837447409,-500.0,0.00041095,14]
[341363942,1730837447418,-500.0,0.00041095,14]
[341363943,1730837447427,-500.0,0.00041095,14]
[341363944,1730837447436,-500.0,0.00041095,14]
[341363945,1730837447445,-513.90947329,0.00041095,14]
[341363946,1730837447456,-500.0,0.00041095,14]
[341363947,1730837447465,-500.0,0.00041095,14]
[341363948,1730837447474,-491.06033013,0.00041095,14]
[341363949,1730837447483,-500.0,0.00041095,14]
[341363950,1730837447493,-500.0,0.00041095,14]
[341363951,1730837447502,-500.0,0.00041095,14]
[341363952,1730837447511,-500.0,0.00041095,14]
[341363953,1730837447520,-500.0,0.00041095,14]
[341363954,1730837447530,-500.0,0.00041095,14]
[341363955,1730837447539,-500.0,0.00041095,14]
[341363956,1730837447549,-500.0,0.00041095,14]
[341363957,1730837447558,-500.0,0.00041095,14]
[341363958,1730837447568,-500.0,0.00041095,14]
[341363959,1730837447576,-198.99914669,0.00041095,14]
[341363960,1730837447585,-500.0,0.00041095,14]
[341363961,1730837447596,-500.0,0.00041095,14]
[341363962,1730837447606,-500.0,0.00041095,14]
[341363963,1730837447616,-500.0,0.00041095,14]
[341363964,1730837447625,-440.14406983,0.00041095,14]
[341363965,1730837447635,-526.59999904,0.00041095,14]
[341363966,1730837447645,-500.0,0.00041095,14]
[341363967,1730837447657,-515.39055634,0.00041095,14]
[341363968,1730837447668,-500.0,0.00041095,14]
[341363969,1730837447678,-544.46256435,0.00041095,14]
[341363970,1730837447690,-500.0,0.00041095,14]
[341363971,1730837447699,-500.0,0.00041095,14]
[341363972,1730837447711,-500.0,0.00041095,14]
[341363973,1730837447720,-500.0,0.00041095,14]
[341363974,1730837447731,-501.57654143,0.00041095,14]
[341363975,1730837447741,-500.0,0.00041095,14]
[341363976,1730837447752,-1529.15,0.00041095,120]
[341363977,1730837447763,-1529.15,0.00041095,120]
[341363978,1730837447772,-500.81312293,0.00041095,14]
[341363979,1730837447781,-1529.15,0.00041095,120]
[341363980,1730837447791,-1529.15,0.00041095,120]
[341363981,1730837447801,-1529.15,0.00041095,120]
[341363982,1730837447811,-1529.15,0.00041095,120]
[341363983,1730837447819,-1529.15,0.00041095,120]
[341363984,1730837447829,-1529.15,0.00041095,120]
[341363985,1730837447839,-1529.15,0.00041095,120]
[341363986,1730837447848,-500.57155544,0.00041095,10]
[341363987,1730837447858,-1529.15,0.00041095,120]
[341363988,1730837447867,-1529.15,0.00041095,120]
[341363989,1730837447877,-1529.15,0.00041095,120]
[341363990,1730837447886,-1529.15,0.00041095,120]
[341363991,1730837447895,-500.0,0.00041095,14]
[341363992,1730837447905,-502.76298619,0.00041095,14]
[341363993,1730837447914,-500.0,0.00041095,14]
[341363994,1730837447923,-1529.15,0.00041095,120]
[341363995,1730837447933,-500.0,0.00041095,14]
[341363996,1730837447942,-1529.15,0.00041095,120]
[341363997,1730837447951,-500.0,0.00041095,14]
[341363998,1730837447967,-500.0,0.00041095,14]
[341363999,1730837447976,-500.0,0.00041095,14]
[341364000,1730837447991,-500.0,0.00041095,14]
[341364001,1730837448000,-500.0,0.00041095,14]
[341364002,1730837448009,-500.0,0.00041095,14]
[341364003,1730837448019,-500.0,0.00041095,14]
[341364004,1730837448028,-500.0,0.00041095,14]
[341364005,1730837448037,-500.0,0.00041095,14]
[341364006,1730837448046,-500.0,0.00041095,14]
[341364007,1730837448055,-500.0,0.00041095,14]
[341364008,1730837448065,-500.0,0.00041095,14]
[341364009,1730837448074,-500.0,0.00041095,14]
[341364010,1730837448083,-500.0,0.00041095,14]
[341364011,1730837448093,-500.0,0.00041095,14]
[341364012,1730837448103,-481.42939411,0.00041095,14]
[341364013,1730837448112,-500.0,0.00041095,14]
[341364014,1730837448122,-500.0,0.00041095,14]
[341364015,1730837448132,-500.0,0.00041095,14]
[341364016,1730837448141,-500.0,0.00041095,14]
[341364017,1730837448151,-500.0,0.00041095,14]
[341364018,1730837448160,-500.0,0.00041095,14]
[341364019,1730837448170,-500.0,0.00041095,14]
[341364020,1730837448180,-500.0,0.00041095,14]
[341364021,1730837448189,-500.0,0.00041095,14]
[341364022,1730837448199,-500.0,0.00041095,14]
[341364023,1730837448215,-500.0,0.00041095,14]
[341364024,1730837448225,-503.21239165,0.00041095,14]
[341364025,1730837448235,-503.37673088,0.00041095,14]
[341364026,1730837448244,-500.0,0.00041095,14]
[341364027,1730837448254,-500.0,0.00041095,14]
[341364028,1730837448263,-501.12035207,0.00041095,14]
[341364029,1730837448273,-500.0,0.00041095,14]
[341364030,1730837448283,-500.0,0.00041095,14]
[341364031,1730837448293,-500.0,0.00041095,14]
[341364032,1730837448302,-500.0,0.00041095,14]
[341364033,1730837448313,-500.0,0.00041095,14]
[341364034,1730837448322,-500.0,0.00041095,14]
[341364035,1730837448332,-500.0,0.00041095,14]
[341364036,1730837448342,-500.0,0.00041095,14]
[341364037,1730837448351,-612.8,0.00041095,14]
[341364038,1730837448361,-500.0,0.00041095,14]
[341364039,1730837448371,-500.0,0.00041095,14]
[341364040,1730837448380,-500.0,0.00041095,14]
[341364041,1730837448389,-500.0,0.00041095,14]
[341364042,1730837448399,-500.0,0.00041095,14]
[341364043,1730837448408,-500.0,0.00041095,14]
[341364044,1730837448417,-500.0,0.00041095,14]
[341364045,1730837448427,-500.0,0.00041095,14]
[341364046,1730837448437,-500.0,0.00041095,14]
[341364047,1730837448447,-500.0,0.00041095,14]
[341364048,1730837448459,-500.0,0.00041095,14]
[341364049,1730837448468,-500.0,0.00041095,14]
[341364050,1730837448478,-501.33652771,0.00041095,14]
[341364051,1730837448488,-505.06458034,0.00041095,14]
[341364052,1730837448497,-500.80572557,0.00041095,14]
[341364053,1730837448507,-500.98864187,0.00041095,14]
[341364054,1730837448516,-301.61926498,0.00041095,14]
[341364055,1730837448526,-500.0,0.00041095,14]
[341364056,1730837448535,-500.0,0.00041095,14]
[341364057,1730837448544,-500.0,0.00041095,14]
[341364058,1730837448554,-500.0,0.00041095,14]
[341364059,1730837448564,-500.0,0.00041095,14]
[341364060,1730837448574,-500.0,0.00041095,14]
[341364061,1730837448583,-500.0,0.00041095,14]
[341364062,1730837448592,-500.0,0.00041095,14]
[341364063,1730837448601,-500.0,0.00041095,14]
[341364064,1730837448610,-500.0,0.00041095,14]
[341364065,1730837448619,-500.0,0.00041095,14]
[341364066,1730837448628,-500.0,0.00041095,14]
[341364067,1730837448638,-500.0,0.00041095,14]
[341364068,1730837448647,-323.22865867,0.00041095,14]
[341364069,1730837448656,-500.0,0.00041095,14]
[341364070,1730837448665,-500.0,0.00041095,14]
[341364071,1730837448674,-500.0,0.00041095,14]
[341364072,1730837448684,-500.0,0.00041095,14]
[341364073,1730837448694,-500.0,0.00041095,14]
[341364074,1730837448703,-500.0,0.00041095,14]
[341364075,1730837448714,-500.0,0.00041095,14]
[341364076,1730837448723,-500.0,0.00041095,14]
[341364077,1730837448733,-500.0,0.00041095,14]
[341364078,1730837448743,-372.90801829,0.00041095,14]
[341364079,1730837448754,-972.12,0.00041095,14]
[341364080,1730837448765,-500.0,0.00041095,14]
[341364081,1730837448832,-500.0,0.00041095,14]
[341364082,1730837448849,-972.12,0.00041095,14]
[341364083,1730837448859,-500.0,0.00041095,14]
[341364084,1730837448870,-972.12,0.00041095,14]
[341364085,1730837448880,-500.0,0.00041095,14]
[341364086,1730837448890,-972.12,0.00041095,14]
[341364087,1730837448899,-162.18961914,0.00041095,14]
[341364088,1730837448909,-972.12,0.00041095,14]
[341364089,1730837448919,-972.12,0.00041095,14]
[341364090,1730837448929,-972.12,0.00041095,14]
[341364091,1730837448940,-500.0,0.00041095,14]
[341364092,1730837448950,-500.0,0.00041095,14]
[341364093,1730837448962,-500.0,0.00041095,14]
[341364094,1730837448971,-159.28856172,0.00041095,14]
[341364095,1730837448980,-500.0,0.00041095,14]
[341364096,1730837448989,-500.0,0.00041095,14]
[341364097,1730837448998,-500.0,0.00041095,14]
[341364098,1730837449008,-500.0,0.00041095,14]
[341364099,1730837449018,-500.0,0.00041095,14]
[341364100,1730837449027,-500.0,0.00041095,14]
[341364101,1730837449038,-500.0,0.00041095,14]
[341364102,1730837449048,-500.0,0.00041095,14]
[341364103,1730837449058,-500.0,0.00041095,14]
[341364104,1730837449067,-500.0,0.00041095,14]
[341364105,1730837449077,-500.0,0.00041095,14]
[341364106,1730837449087,-500.0,0.00041095,14]
[341364107,1730837449096,-339.83,0.000411,2]
[341364108,1730837449106,-2758.59,0.00041143,14]
[341364109,1730837449116,-799.66,0.00041143,14]
[341364110,1730837449126,-477.44,0.00041143,14]
[341364111,1730837449135,-1529.15,0.00041143,120]
[341364112,1730837449146,-799.66,0.00041195,14]
[341364113,1730837449157,-1529.15,0.00041195,120]
[341364114,1730837449167,-1808.54,0.00041196,14]
[341364115,1730837449176,-500.0,0.00041196,14]
[341364116,1730837449186,-500.0,0.00041196,14]
[341364117,1730837449195,-500.0,0.00041196,14]
[341364118,1730837449206,-500.0,0.00041196,14]
[341364119,1730837449215,-150.0,0.00041197,2]
[341364120,1730837449224,-190.656,0.00041197,2]
[341364121,1730837449234,-151.433,0.00041197,2]
[341364122,1730837449243,-2394.0,0.00041197,2]
[341364123,1730837449253,-533.48,0.000412,120]
[341364124,1730837449263,-2758.59,0.0004122,14]
[341364125,1730837449272,-500.0,0.00041221,14]
[341364126,1730837449282,-500.0,0.00041221,14]
[341364127,1730837449292,-972.12,0.00041221,14]
[341364128,1730837449302,-2758.59,0.00041395,14]
[341364129,1730837449311,-799.66,0.00041395,14]
[341364130,1730837449321,-799.66,0.00041395,14]
[341364131,1730837449330,-1529.15,0.00041395,120]
[341364132,1730837449340,-1529.15,0.00041395,120]
[341364133,1730837449349,-151.0,0.00041396,120]
[341364134,1730837449360,-151.0,0.00041396,120]
[341364135,1730837449371,-500.0,0.00041447,14]
[341364136,1730837449381,-500.0,0.00041447,14]
[341364137,1730837449392,-972.12,0.00041447,14]
[341364138,1730837449402,-614.0,0.000415,30]
[341364139,1730837449412,-2758.59,0.00041577,14]
[341364140,1730837449421,-1808.54,0.00041578,14]
[341364141,1730837449431,-500.0,0.00041578,14]
[341364142,1730837449441,-500.0,0.00041578,14]
[341364143,1730837449451,-500.0,0.00041578,14]
[341364144,1730837449463,-799.66,0.00041578,14]
[341364145,1730837449473,-799.66,0.00041578,14]
[341364146,1730837449484,-799.66,0.00041578,14]
[341364147,1730837449493,-799.66,0.00041578,14]
[341364148,1730837449503,-799.87,0.00041578,14]
[341364149,1730837449512,-500.0,0.00041578,14]
[341364150,1730837449522,-500.0,0.00041578,14]
[341364151,1730837449532,-1529.15,0.00041578,120]
[341364152,1730837449544,-1529.15,0.00041578,120]
[341364153,1730837449553,-1529.15,0.00041578,120]
[341364154,1730837449564,-1529.15,0.00041578,120]
[341364155,1730837449575,-1529.25,0.00041578,120]
[341364156,1730837449585,-500.0,0.00041578,14]
[341364157,1730837449597,-972.12,0.00041578,14]
[341364158,1730837449607,-500.0,0.00041579,14]
[341364159,1730837449618,-500.0,0.00041579,14]
[341364160,1730837449628,-500.0,0.00041579,14]
[341364161,1730837449637,-500.0,0.00041579,14]
[341364162,1730837449647,-2758.59,0.00041579,14]
[341364163,1730837449656,-7276.28315321,0.0004158,2]
[341364164,1730837449665,-2758.59,0.00041647,14]
[341364165,1730837449675,-2758.59,0.00041647,14]
[341364166,1730837449687,-2758.59,0.00041647,14]
[341364167,1730837449698,-2758.59,0.00041647,14]
[341364168,1730837449707,-2758.68802618,0.00041647,14]
[341364169,1730837449718,-151.0,0.00041648,3]
[341364170,1730837449728,-151.0,0.00041648,120]
[341364171,1730837449738,-151.0,0.00041648,120]
[341364172,1730837449747,-500.0,0.00041673,14]
[341364173,1730837449760,-500.0,0.00041673,14]
[341364174,1730837449772,-972.12,0.00041673,14]
[341364175,1730837449782,-170.143,0.0004179,30]
[341364176,1730837449792,-293.182438,0.000418,12]
[341364177,1730837449803,-1808.54,0.00041898,14]
[341364178,1730837449814,-500.0,0.00041898,14]
[341364179,1730837449825,-500.0,0.00041898,14]
[341364180,1730837449836,-500.0,0.00041898,14]
[341364181,1730837449847,-500.0,0.00041898,14]
[341364182,1730837449857,-500.0,0.00041898,14]
[341364183,1730837449867,-972.12,0.00041898,14]
[341364184,1730837449876,-154.56834673,0.00041899,14]
[341364185,1730837449886,-500.0,0.00041899,14]
[341364186,1730837449897,-500.0,0.00041899,14]
[341364187,1730837449907,-500.0,0.00041899,14]
[341364188,1730837449917,-500.0,0.00041899,14]
[341364189,1730837449926,-151.0,0.00041899,120]
[341364190,1730837449935,-151.0,0.00041899,120]
[341364191,1730837449944,-267.28279,0.00041899,120]
[341364192,1730837449953,-500.0,0.00041899,14]
[341364193,1730837449963,-500.0,0.00041899,14]
[341364194,1730837449972,-500.0,0.00041899,14]
[341364195,1730837449981,-500.0,0.00041899,14]
[341364196,1730837449991,-500.0,0.00041899,14]
[341364197,1730837450001,-972.12,0.00041899,14]
[341364198,1730837450010,-151.0,0.000419,120]
[341364199,1730837450019,-150.697194,0.000419,2]
[341364200,1730837450028,-150.112233,0.000419,18]
[341364201,1730837450037,-24703.60785798,0.000419,120]
[341364202,1730837450046,-500.0,0.00041916,14]
[341364203,1730837450055,-500.0,0.00041916,14]
[341364204,1730837450064,-972.12,0.00041916,14]
[341364205,1730837450074,-500.0,0.00041973,10]
[341364206,1730837450083,-500.0,0.00041973,10]
[341364207,1730837450092,-199.95557336,0.00041973,10]
[341364208,1730837450101,-1808.54,0.00041996,14]
[341364209,1730837450110,-500.0,0.00041996,14]
[341364210,1730837450119,-500.0,0.00041996,14]
[341364211,1730837450128,-500.0,0.00041996,14]
[341364212,1730837450136,-314.91286432,0.00041997,2]
[341364213,1730837450145,-500.0,0.00041997,14]
[341364214,1730837450154,-1808.54,0.00041997,14]
[341364215,1730837450163,-500.0,0.00041997,14]
[341364216,1730837450173,-500.0,0.00041997,14]
[341364217,1730837450182,-420.4,0.00041997,14]
[341364218,1730837450192,-616.92,0.00041997,14]
[341364219,1730837450201,-500.0,0.00041997,14]
[341364220,1730837450214,-972.12,0.00041997,14]
[341364221,1730837450223,-500.0,0.00041998,14]
[341364222,1730837450232,-500.0,0.00041998,14]
[341364223,1730837450242,-500.0,0.00041998,14]
[341364224,1730837450251,-500.0,0.00041998,14]
[341364225,1730837450260,-500.0,0.00041998,14]
[341364226,1730837450269,-500.0,0.00041998,14]
[341364227,1730837450279,-500.0,0.00041998,14]
[341364228,1730837450288,-500.0,0.00041998,14]
[341364229,1730837450296,-500.0,0.00041998,14]
[341364230,1730837450306,-151.0,0.00041998,120]
[341364231,1730837450315,-151.0,0.00041998,120]
[341364232,1730837450324,-500.0,0.00041998,14]
[341364233,1730837450333,-500.0,0.00041998,14]
[341364234,1730837450342,-500.0,0.00041998,14]
[341364235,1730837450352,-500.0,0.00041998,14]
[341364236,1730837450362,-1808.54,0.00041998,14]
[341364237,1730837450371,-1808.54,0.00041998,14]
[341364238,1730837450381,-1808.54,0.00041998,14]
[341364239,1730837450390,-1808.54,0.00041998,14]
[341364240,1730837450399,-1808.54,0.00041998,14]
[341364241,1730837450408,-1808.54,0.00041998,14]
[341364242,1730837450417,-1808.54,0.00041998,14]
[341364243,1730837450427,-1808.54,0.00041998,14]
[341364244,1730837450436,-1808.54,0.00041998,14]
[341364245,1730837450446,-1808.54,0.00041998,14]
[341364246,1730837450458,-1808.74868664,0.00041998,14]
[341364247,1730837450469,-500.0,0.00041998,14]
[341364248,1730837450478,-500.0,0.00041998,14]
[341364249,1730837450554,-500.0,0.00041998,14]
[341364250,1730837450564,-500.0,0.00041998,14]
[341364251,1730837450573,-500.0,0.00041998,14]
[341364252,1730837450582,-500.0,0.00041998,14]
[341364253,1730837450591,-500.0,0.00041998,14]
[341364254,1730837450602,-500.0,0.00041998,14]
[341364255,1730837450611,-500.0,0.00041998,14]
[341364256,1730837450621,-500.0,0.00041998,14]
[341364257,1730837450630,-320.96899308,0.00041998,14]
[341364258,1730837450640,-5636.95,0.00041998,120]
[341364259,1730837450649,-500.0,0.00041998,14]
[341364260,1730837450658,-500.0,0.00041998,14]
[341364261,1730837450667,-500.0,0.00041998,14]
[341364262,1730837450677,-500.0,0.00041998,14]
[341364263,1730837450686,-500.0,0.00041998,14]
[341364264,1730837450696,-500.0,0.00041998,14]
[341364265,1730837450709,-441.40459858,0.00041998,14]
[341364267,1730837892192,520.83333333,0.00020816,2]
[341364277,1730838425146,-520.83333333,0.0002893,2]
[341364278,1730838425168,-310.0,0.00034045,2]
[341364279,1730838425190,-167.0,0.00034045,2]
[341364280,1730838425214,-195.658217,0.00036214,2]
[341364281,1730838425233,-885.58222463,0.00038934,66]
[341364282,1730838425254,-500.0,0.00040995,2]
[341364283,1730838425276,-165.11390451,0.00041094,31]
[341364284,1730838425298,-500.0,0.00041094,7]
[341364285,1730838425320,-455.49690472,0.00041094,31]
[341364286,1730838425344,-347.50266337,0.00041094,7]
[341364287,1730838425364,-322.60010804,0.00041094,31]
[341364288,1730838425387,-500.0,0.00041095,14]
[341364289,1730838425410,-311.19660806,0.00041095,14]
[341364290,1730838440088,-188.80339194,0.00041095,14]
[341364291,1730838440108,-364.64940858,0.00041095,14]
[341364292,1730838442157,-135.35059142,0.00041095,14]
[341364293,1730838442180,-500.0,0.00041095,14]
[341364294,1730838442309,-500.0,0.00041095,14]
[341364295,1730838442332,-500.0,0.00041095,14]
[341364296,1730838442368,-500.0,0.00041095,14]
[341364297,1730838442394,-500.0,0.00041095,14]
[341364298,1730838442417,-500.0,0.00041095,14]
[341364299,1730838442444,-500.0,0.00041095,14]
[341364300,1730838442466,-230.41875778,0.00041095,14]
[341364301,1730838442489,-500.0,0.00041095,14]
[341364302,1730838442510,-367.11354281,0.00041095,14]
[341364303,1730838452089,-520.83333333,0.00024873,2]
[341364304,1730838452111,-426.12671395,0.00034899,2]
[341364305,1730838475308,373.70569721,0.00034046,30]
[341364306,1730838504368,520.83333333,0.00020816,2]
[341364308,1730838528533,163080.2400834,0.00034046,30]
[341364312,1730838549115,-155018.39061514,0.00022,30]
[341364313,1730838556169,-2354.71655666,0.00022,30]
[341364314,1730838556190,-400.0,0.00025469,3]
[341364315,1730838556211,-5199.04569652,0.0002661,30]
[341364316,1730838556233,-80634.97071466,0.00029,30]
[341364317,1730838556256,-1208.18381565,0.00034899,2]
[341364318,1730838560863,729.95489,0.00030803,2]
[341364319,1730838561253,729.95489,0.00031488,2]
[341364320,1730838561641,729.95489,0.00032173,2]
[341364321,1730838566761,150.0,0.00036,2]
[341364407,1730838631717,-693.2951214,0.00034045,2]
[341364414,1730838631775,-4156.7048786,0.00034045,2]
[341364416,1730838631784,-150.0,0.00034045,2]
[341364418,1730838631793,-1622.78824116,0.00034045,2]
[341364920,1730838642780,-1417.88148348,0.00034045,2]
[341364922,1730838642791,-2000.0,0.00034045,2]
[341364924,1730838642802,-300.0,0.00034045,2]
[341364925,1730838642814,-798.01635438,0.00034045,2]
[341364927,1730838642824,-517.11713947,0.00034045,2]
[341364929,1730838642836,-292.65084781,0.00034045,2]
[341364931,1730838642846,-4174.55725492,0.00034045,2]
[341364932,1730838642855,-322.27261764,0.00034045,2]
[341364934,1730838642865,-338.95460183,0.00034045,2]
[341364936,1730838642884,-1192.17926379,0.00034045,2]
[341364938,1730838642904,-287.55268934,0.00034045,2]
[341364940,1730838642920,-164.16620873,0.00034045,2]
[341364941,1730838642932,-4144.85207714,0.00034045,2]
[341364943,1730838642944,-1191.71124874,0.00034045,2]
[341364945,1730838642955,-155.19242757,0.00034045,2]
[341364947,1730838642965,-5714.37413901,0.00034045,5]
[341364948,1730838642976,-439.63201889,0.00034045,2]
[341364950,1730838642987,-224.56451545,0.00034045,2]
[341364951,1730838642998,-1024.32857116,0.00034045,2]
[341364952,1730838643009,-1838.5624122,0.00034045,2]
[341364953,1730838643021,-910.04757346,0.00034045,2]
[341364954,1730838643031,-461.19331549,0.00034045,2]
[341364955,1730838643043,-3072.10553188,0.00034045,2]
[341364956,1730838643054,-176.46543725,0.00034045,2]
[341364957,1730838643064,-835.4120179,0.00034045,2]
[341364958,1730838643074,-229.62848777,0.00034045,2]